fUSD/lending_fUSD_20260510
["ID","MTS","AMOUNT","RATE_DAILY","PERIOD"]
[421960481,1778374241000,-500.0,0.00010772,2]
[421960483,1778374241000,-500.0,0.00010772,2]
[421960493,1778374241000,-219.19126393,0.00010772,2]
[421960482,1778374241000,-500.0,0.00010772,2]
[421960485,1778374241000,-199.9293781,0.00010772,2]
[421960484,1778374241000,-500.0,0.00010772,2]
[421960492,1778374241000,-500.0,0.00010772,2]
[421960504,1778374241000,-500.0,0.00010825,2]
[421960486,1778374241000,-500.0,0.00010772,2]
[421960487,1778374241000,-500.0,0.00010772,2]
[421960489,1778374241000,-500.0,0.00010772,2]
[421960490,1778374241000,-500.0,0.00010772,2]
[421960533,1778374241000,-151.0,0.000126,2]
[421960494,1778374241000,-500.0,0.00010772,2]
[421960495,1778374241000,-500.0,0.00010772,2]
[421960497,1778374241000,-500.0,0.00010772,2]
[421960496,1778374241000,-297.77652657,0.00010772,2]
[421960498,1778374241000,-481.55,0.00010779,2]
[421960499,1778374241000,-500.0,0.00010825,2]
[421960500,1778374241000,-500.0,0.00010825,2]
[421960503,1778374241000,-500.0,0.00010825,2]
[421960501,1778374241000,-500.0,0.00010825,2]
[421960488,1778374241000,-500.0,0.00010772,2]
[421960542,1778374241000,-500.0,0.000126,2]
[421960524,1778374241000,-250.0,0.0001122,2]
[421960538,1778374241000,-282.31240506,0.000126,2]
[421960581,1778374241000,-500.0,0.00013698,2]
[421960572,1778374241000,-500.0,0.00013698,2]
[421960573,1778374241000,-500.0,0.00013698,2]
[421960574,1778374241000,-500.0,0.00013698,2]
[421960575,1778374241000,-500.0,0.00013698,2]
[421960576,1778374241000,-500.0,0.00013698,2]
[421960579,1778374241000,-500.0,0.00013698,2]
[421960578,1778374241000,-500.0,0.00013698,2]
[421960577,1778374241000,-500.0,0.00013698,2]
[421960580,1778374241000,-635.48,0.00013698,2]
[421960582,1778374241000,-500.0,0.00013698,2]
[421960594,1778374241000,-200.0,0.00013699,2]
[421960583,1778374241000,-500.0,0.00013698,2]
[421960570,1778374241000,-229.47870549,0.00013698,2]
[421960585,1778374241000,-500.0,0.00013698,2]
[421960587,1778374241000,-500.0,0.00013698,2]
[421960586,1778374241000,-500.0,0.00013698,2]
[421960592,1778374241000,-166.66,0.00013699,2]
[421960591,1778374241000,-500.0,0.00013698,2]
[421960590,1778374241000,-500.0,0.00013698,2]
[421960537,1778374241000,-151.0,0.000126,2]
[421960589,1778374241000,-500.0,0.00013698,2]
[421960593,1778374241000,-2500.0,0.00013699,2]
[421960596,1778374241000,-12185.48,0.00013699,2]
[421960598,1778374241000,-898.19480461,0.00013699,2]
[421960599,1778374241000,-898.19480461,0.00013699,2]
[421960597,1778374241000,-898.19480461,0.00013699,2]
[421960595,1778374241000,-9999.99,0.00013699,2]
[421960584,1778374241000,-500.0,0.00013698,2]
[421960571,1778374241000,-500.0,0.00013698,2]
[421960588,1778374241000,-500.0,0.00013698,2]
[421960566,1778374241000,-500.0,0.00013698,2]
[421960569,1778374241000,-500.0,0.00013698,2]
[421960536,1778374241000,-151.0,0.000126,2]
[421960539,1778374241000,-500.0,0.000126,2]
[421960541,1778374241000,-500.0,0.000126,2]
[421960543,1778374241000,-500.0,0.000126,2]
[421960545,1778374241000,-500.0,0.000126,2]
[421960546,1778374241000,-500.0,0.000126,2]
[421960547,1778374241000,-500.0,0.000126,2]
[421960548,1778374241000,-500.0,0.000126,2]
[421960549,1778374241000,-500.0,0.000126,2]
[421960551,1778374241000,-193.46,0.00012927,2]
[421960553,1778374241000,-200.0,0.00013148,2]
[421960552,1778374241000,-2157.14243825,0.00013148,2]
[421960550,1778374241000,-521.59780311,0.000126,2]
[421960540,1778374241000,-282.61545435,0.000126,2]
[421960544,1778374241000,-500.0,0.000126,2]
[421960567,1778374241000,-500.0,0.00013698,2]
[421960554,1778374241000,-3077.40983933,0.00013606,2]
[421960565,1778374241000,-500.0,0.00013698,2]
[421960559,1778374241000,-500.0,0.00013698,2]
[421960563,1778374241000,-500.0,0.00013698,2]
[421960568,1778374241000,-500.0,0.00013698,2]
[421960564,1778374241000,-533.79713341,0.00013698,2]
[421960560,1778374241000,-500.0,0.00013698,2]
[421960561,1778374241000,-500.0,0.00013698,2]
[421960555,1778374241000,-200.0,0.00013696,2]
[421960557,1778374241000,-500.0,0.00013698,2]
[421960558,1778374241000,-500.0,0.00013698,2]
[421960562,1778374241000,-500.0,0.00013698,2]
[421960556,1778374241000,-500.0,0.00013698,2]
[421960626,1778374242000,-898.19480461,0.00013699,2]
[421960625,1778374242000,-898.19480461,0.00013699,2]
[421960628,1778374242000,-898.19480461,0.00013699,2]
[421960627,1778374242000,-898.19480461,0.00013699,2]
[421960632,1778374242000,-898.19480461,0.00013699,2]
[421960631,1778374242000,-898.19480461,0.00013699,2]
[421960630,1778374242000,-898.19480461,0.00013699,2]
[421960622,1778374242000,-898.19480461,0.00013699,2]
[421960629,1778374242000,-898.19480461,0.00013699,2]
[421960634,1778374242000,-898.19480461,0.00013699,2]
[421960640,1778374242000,-898.19480461,0.00013699,2]
[421960633,1778374242000,-898.19480461,0.00013699,2]
[421960636,1778374242000,-898.19480461,0.00013699,2]
[421960637,1778374242000,-898.19480461,0.00013699,2]
[421960638,1778374242000,-898.19480461,0.00013699,2]
[421960639,1778374242000,-898.19480461,0.00013699,2]
[421960641,1778374242000,-898.19480461,0.00013699,2]
[421960643,1778374242000,-898.19480461,0.00013699,2]
[421960647,1778374242000,-898.19480461,0.00013699,2]
[421960624,1778374242000,-898.19480461,0.00013699,2]
[421960635,1778374242000,-898.19480461,0.00013699,2]
[421960623,1778374242000,-898.19480461,0.00013699,2]
[421960603,1778374242000,-898.19480461,0.00013699,2]
[421960618,1778374242000,-898.19480461,0.00013699,2]
[421960646,1778374242000,-898.19480461,0.00013699,2]
[421960606,1778374242000,-898.19480461,0.00013699,2]
[421960607,1778374242000,-898.19480461,0.00013699,2]
[421960601,1778374242000,-898.19480461,0.00013699,2]
[421960602,1778374242000,-898.19480461,0.00013699,2]
[421960605,1778374242000,-898.19480461,0.00013699,2]
[421960604,1778374242000,-898.19480461,0.00013699,2]
[421960600,1778374242000,-898.19480461,0.00013699,2]
[421960612,1778374242000,-898.19480461,0.00013699,2]
[421960621,1778374242000,-898.19480461,0.00013699,2]
[421960610,1778374242000,-898.19480461,0.00013699,2]
[421960611,1778374242000,-898.19480461,0.00013699,2]
[421960617,1778374242000,-898.19480461,0.00013699,2]
[421960613,1778374242000,-898.19480461,0.00013699,2]
[421960616,1778374242000,-898.19480461,0.00013699,2]
[421960620,1778374242000,-898.19480461,0.00013699,2]
[421960619,1778374242000,-898.19480461,0.00013699,2]
[421960609,1778374242000,-898.19480461,0.00013699,2]
[421960614,1778374242000,-898.19480461,0.00013699,2]
[421960615,1778374242000,-898.19480461,0.00013699,2]
[421960608,1778374242000,-898.19480461,0.00013699,2]
[421960645,1778374242000,-898.19480461,0.00013699,2]
[421960642,1778374242000,-898.19480461,0.00013699,2]
[421960648,1778374242000,-898.19480461,0.00013699,2]
[421960673,1778374242000,-1002.18096122,0.00013699,2]
[421960674,1778374242000,-1002.18096122,0.00013699,2]
[421960675,1778374242000,-1002.18096122,0.00013699,2]
[421960678,1778374242000,-1002.18096122,0.00013699,2]
[421960676,1778374242000,-1002.18096122,0.00013699,2]
[421960677,1778374242000,-1002.18096122,0.00013699,2]
[421960681,1778374242000,-1002.18096122,0.00013699,2]
[421960680,1778374242000,-1002.18096122,0.00013699,2]
[421960679,1778374242000,-1002.18096122,0.00013699,2]
[421960682,1778374242000,-1002.18096122,0.00013699,2]
[421960683,1778374242000,-1002.18096122,0.00013699,2]
[421960685,1778374242000,-1002.18096114,0.00013699,2]
[421960684,1778374242000,-1002.18096122,0.00013699,2]
[421960688,1778374242000,-1333.93,0.00013859,2]
[421960690,1778374242000,-16582.36030703,0.0001399,2]
[421960687,1778374242000,-166.66,0.00013836,2]
[421960691,1778374242000,-166.66,0.0001411,2]
[421960689,1778374242000,-166.66,0.00013973,2]
[421960692,1778374242000,-225.39,0.00014143,2]
[421960693,1778374242000,-200.0,0.00014244,2]
[421960644,1778374242000,-898.19480461,0.00013699,2]
[421960671,1778374242000,-1002.18096122,0.00013699,2]
[421960668,1778374242000,-1002.18096122,0.00013699,2]
[421960686,1778374242000,-512.43,0.000137,2]
[421960670,1778374242000,-1002.18096122,0.00013699,2]
[421960672,1778374242000,-1002.18096122,0.00013699,2]
[421960649,1778374242000,-898.19480461,0.00013699,2]
[421960650,1778374242000,-898.19480461,0.00013699,2]
[421960694,1778374242000,-166.66,0.00014247,2]
[421960651,1778374242000,-898.19480461,0.00013699,2]
[421960652,1778374242000,-898.19480461,0.00013699,2]
[421960653,1778374242000,-898.19480461,0.00013699,2]
[421960655,1778374242000,-898.19480461,0.00013699,2]
[421960656,1778374242000,-898.19480461,0.00013699,2]
[421960657,1778374242000,-898.19480461,0.00013699,2]
[421960654,1778374242000,-898.19480461,0.00013699,2]
[421960660,1778374242000,-1002.18096122,0.00013699,2]
[421960662,1778374242000,-1002.18096122,0.00013699,2]
[421960661,1778374242000,-1002.18096122,0.00013699,2]
[421960663,1778374242000,-1002.18096122,0.00013699,2]
[421960664,1778374242000,-1002.18096122,0.00013699,2]
[421960658,1778374242000,-898.19480461,0.00013699,2]
[421960666,1778374242000,-1002.18096122,0.00013699,2]
[421960665,1778374242000,-1002.18096122,0.00013699,2]
[421960667,1778374242000,-1002.18096122,0.00013699,2]
[421960659,1778374242000,-898.19480461,0.00013699,2]
[421960669,1778374242000,-1002.18096122,0.00013699,2]
[421960737,1778374243000,-2728.41,0.00018067,2]
[421960735,1778374243000,-2728.41,0.00017207,2]
[421960733,1778374243000,-1000.0,0.00016986,2]
[421960728,1778374243000,-500.0,0.00016438,2]
[421960734,1778374243000,-3077.40983933,0.00017012,2]
[421960732,1778374243000,-1333.93,0.00016938,2]
[421960730,1778374243000,-165.677525,0.000166,7]
[421960724,1778374243000,-2728.41,0.00016346,2]
[421960729,1778374243000,-165.677525,0.00016583,7]
[421960743,1778374243000,-165.06492088,0.00019,2]
[421960727,1778374243000,-492.6350223,0.00016438,2]
[421960731,1778374243000,-262.22,0.00016767,2]
[421960738,1778374243000,-1207.76532497,0.000184,2]
[421960749,1778374243000,-155.6,0.00020381,2]
[421960741,1778374243000,-1333.93,0.00018478,2]
[421960747,1778374243000,-378.0,0.0002,2]
[421960744,1778374243000,-2415.25769731,0.00019114,2]
[421960746,1778374243000,-7336.0,0.0002,2]
[421960745,1778374243000,-2728.41,0.00019788,2]
[421960740,1778374243000,-155.6,0.0001841,2]
[421960739,1778374243000,-263.50783151,0.000184,2]
[421960736,1778374243000,-440.50522985,0.00017999,10]
[421960751,1778374243000,-2728.41,0.00020648,2]
[421960750,1778374243000,-3077.40983933,0.00020417,2]
[421960752,1778374243000,-1066.73007954,0.00020767,2]
[421960755,1778374243000,-671.0,0.00021,2]
[421960725,1778374243000,-200.0,0.00016436,2]
[421960742,1778374243000,-2728.41,0.00018927,2]
[421960726,1778374243000,-155.6,0.00016438,2]
[421960700,1778374243000,-153.45817239,0.000149,2]
[421960721,1778374243000,-9999.99,0.00016116,2]
[421960695,1778374243000,-250.0,0.00014276,2]
[421960696,1778374243000,-166.66,0.00014384,2]
[421960697,1778374243000,-2415.25769731,0.00014557,2]
[421960699,1778374243000,-153.45817241,0.000149,2]
[421960698,1778374243000,-200.0,0.00014792,2]
[421960761,1778374243000,-5000.0,0.00021918,2]
[421960701,1778374243000,-153.45817239,0.000149,2]
[421960702,1778374243000,-500.0,0.00015339,2]
[421960705,1778374243000,-1066.73007954,0.00015483,2]
[421960703,1778374243000,-200.0,0.0001534,2]
[421960709,1778374243000,-193.46,0.00015512,2]
[421960708,1778374243000,-236.31370289,0.00015501,3]
[421960706,1778374243000,-494.89598224,0.00015501,3]
[421960707,1778374243000,-1047.11602037,0.00015501,3]
[421960704,1778374243000,-1333.93,0.00015399,2]
[421960710,1778374243000,-200.0,0.00015888,2]
[421960711,1778374243000,-4354.16,0.00016116,2]
[421960714,1778374243000,-9999.99,0.00016116,2]
[421960713,1778374243000,-999.99,0.00016116,2]
[421960715,1778374243000,-18945.3,0.00016116,2]
[421960712,1778374243000,-4422.27,0.00016116,2]
[421960716,1778374243000,-499.99,0.00016116,2]
[421960718,1778374243000,-9999.99,0.00016116,2]
[421960717,1778374243000,-150.99,0.00016116,2]
[421960719,1778374243000,-299.99,0.00016116,4]
[421960720,1778374243000,-519.92,0.00016116,2]
[421960722,1778374243000,-2845.7,0.00016116,5]
[421960723,1778374243000,-24999.99,0.00016116,2]
[421960756,1778374243000,-262.22,0.00021205,2]
[421960748,1778374243000,-671.0,0.0002,2]
[421960753,1778374243000,-512.43,0.000208,2]
[421960801,1778374243000,-503.0,0.00025324,2]
[421960791,1778374243000,-459.69,0.00024707,2]
[421960802,1778374243000,-1625.76,0.00025378,30]
[421960793,1778374243000,-1625.76,0.00024946,30]
[421960789,1778374243000,-170.86,0.00024658,2]
[421960800,1778374243000,-1625.76,0.00025234,7]
[421960792,1778374243000,-1625.76,0.00024802,7]
[421960798,1778374243000,-170.86,0.00025205,7]
[421960797,1778374243000,-1625.76,0.0002509,2]
[421960799,1778374243000,-170.87,0.00025205,7]
[421960794,1778374243000,-2728.41,0.0002495,2]
[421960795,1778374243000,-378.0,0.00025,2]
[421960796,1778374243000,-678.54248885,0.00025,2]
[421960790,1778374243000,-170.87,0.00024658,2]
[421960803,1778374243000,-512.43,0.000254,7]
[421960812,1778374243000,-1625.76,0.00025811,30]
[421960813,1778374243000,-1625.76,0.00025955,2]
[421960806,1778374243000,-1625.76,0.00025667,7]
[421960804,1778374243000,-1625.76,0.00025523,2]
[421960814,1778374243000,-12239.68358532,0.00026,2]
[421960811,1778374243000,-2728.41,0.0002581,2]
[421960810,1778374243000,-3309.69,0.00025786,2]
[421960808,1778374243000,-296.75,0.00025786,2]
[421960807,1778374243000,-747.82,0.00025786,2]
[421960809,1778374243000,-1121.41,0.00025786,2]
[421960816,1778374243000,-1066.73007954,0.0002605,2]
[421960815,1778374243000,-202.71277132,0.00026,2]
[421960757,1778374243000,-747.82,0.00021273,2]
[421960805,1778374243000,-262.22,0.00025644,2]
[421960782,1778374243000,-1121.41,0.00024174,2]
[421960817,1778374243000,-1155.01765428,0.0002605,2]
[421960786,1778374243000,-476.77,0.00024433,2]
[421960783,1778374243000,-3309.69,0.00024174,2]
[421960754,1778374243000,-378.0,0.00021,2]
[421960758,1778374243000,-296.75,0.00021273,2]
[421960759,1778374243000,-500.0,0.00021279,2]
[421960763,1778374243000,-671.0,0.00022,2]
[421960773,1778374243000,-476.77,0.00023885,2]
[421960762,1778374243000,-378.0,0.00022,2]
[421960774,1778374243000,-262.86132106,0.0002395,14]
[421960775,1778374243000,-262.87,0.00023967,14]
[421960765,1778374243000,-2728.41,0.00022369,2]
[421960768,1778374243000,-378.0,0.00023,2]
[421960764,1778374243000,-155.6,0.00022353,2]
[421960767,1778374243000,-208.0536425,0.00022668,2]
[421960772,1778374243000,-3077.40983933,0.00023823,2]
[421960760,1778374243000,-2728.41,0.00021508,2]
[421960771,1778374243000,-2415.25769731,0.00023671,2]
[421960770,1778374243000,-2728.41,0.00023229,2]
[421960784,1778374243000,-155.6,0.00024324,2]
[421960785,1778374243000,-503.0,0.00024397,2]
[421960781,1778374243000,-476.77,0.00024159,2]
[421960779,1778374243000,-500.0,0.00024088,2]
[421960787,1778374243000,-1000.0,0.00024658,2]
[421960776,1778374243000,-378.0,0.00024,2]
[421960778,1778374243000,-1386.97945426,0.00024033,32]
[421960780,1778374243000,-2728.41,0.00024089,2]
[421960788,1778374243000,-1625.76,0.00024658,2]
[421960777,1778374243000,-671.0,0.00024,2]
[421960769,1778374243000,-671.0,0.00023,2]
[421960766,1778374243000,-214.73073128,0.00022665,2]
[421960852,1778374244000,-1083.84,0.00027222,2]
[421960854,1778374244000,-1083.84,0.00027222,30]
[421960863,1778374244000,-1083.84,0.00027222,30]
[421960859,1778374244000,-1083.84,0.00027222,7]
[421960858,1778374244000,-1083.84,0.00027222,2]
[421960851,1778374244000,-1083.84,0.00027222,30]
[421960857,1778374244000,-1083.84,0.00027222,30]
[421960862,1778374244000,-1083.84,0.00027222,7]
[421960856,1778374244000,-1083.84,0.00027222,7]
[421960853,1778374244000,-1083.84,0.00027222,7]
[421960847,1778374244000,-1083.84,0.00027222,7]
[421960855,1778374244000,-1083.84,0.00027222,2]
[421960861,1778374244000,-1083.84,0.00027222,2]
[421960869,1778374244000,-160.0,0.0002739,10]
[421960865,1778374244000,-1083.9,0.00027222,7]
[421960864,1778374244000,-1083.84,0.00027222,2]
[421960867,1778374244000,-1625.76,0.00027253,2]
[421960866,1778374244000,-3077.40983933,0.00027229,2]
[421960868,1778374244000,-160.0,0.0002739,30]
[421960870,1778374244000,-1625.86,0.00027397,7]
[421960871,1778374244000,-150.0,0.00027397,2]
[421960873,1778374244000,-150.0,0.00027397,2]
[421960872,1778374244000,-209.47586133,0.00027397,2]
[421960886,1778374244000,-4944.65,0.000274,2]
[421960874,1778374244000,-1008.89,0.00027397,2]
[421960875,1778374244000,-1500.0,0.00027397,2]
[421960848,1778374244000,-1083.84,0.00027222,30]
[421960876,1778374244000,-300.0,0.00027397,2]
[421960860,1778374244000,-1083.84,0.00027222,30]
[421960849,1778374244000,-1083.84,0.00027222,2]
[421960838,1778374244000,-500.0,0.00026839,30]
[421960846,1778374244000,-1083.84,0.00027222,2]
[421960878,1778374244000,-6897.72,0.00027397,10]
[421960823,1778374244000,-170.87,0.00026306,2]
[421960819,1778374244000,-1625.76,0.00026243,30]
[421960822,1778374244000,-500.0,0.00026301,2]
[421960821,1778374244000,-155.6,0.00026296,2]
[421960818,1778374244000,-1625.76,0.00026099,7]
[421960826,1778374244000,-170.87,0.00026395,7]
[421960824,1778374244000,-170.86,0.0002633,2]
[421960825,1778374244000,-1625.76,0.00026388,2]
[421960820,1778374244000,-503.0,0.00026251,3]
[421960827,1778374244000,-170.86,0.00026411,7]
[421960828,1778374244000,-170.87,0.00026485,30]
[421960829,1778374244000,-170.86,0.00026493,30]
[421960845,1778374244000,-503.0,0.00027177,4]
[421960830,1778374244000,-1625.76,0.00026532,7]
[421960831,1778374244000,-557.886,0.00026565,30]
[421960835,1778374244000,-1625.76,0.00026676,30]
[421960836,1778374244000,-214.73073128,0.000267,30]
[421960832,1778374244000,-170.86,0.00026575,2]
[421960834,1778374244000,-2728.41,0.0002667,2]
[421960837,1778374244000,-1625.76,0.0002682,2]
[421960840,1778374244000,-500.0,0.00026839,30]
[421960839,1778374244000,-500.0,0.00026839,30]
[421960841,1778374244000,-150.0,0.00026849,2]
[421960844,1778374244000,-1625.76,0.00027108,30]
[421960850,1778374244000,-1083.84,0.00027222,7]
[421960842,1778374244000,-1625.76,0.00026964,7]
[421960843,1778374244000,-214.73073128,0.00027,7]
[421960833,1778374244000,-170.88,0.00026575,2]
[421960877,1778374244000,-1000.0,0.00027397,20]
[421960938,1778374244000,-158.0,0.00031896,30]
[421960885,1778374244000,-1020.26,0.000274,7]
[421960911,1778374244000,-2728.41,0.00030112,2]
[421960912,1778374244000,-200.0,0.00030137,2]
[421960917,1778374244000,-1020.26,0.000304,7]
[421960928,1778374244000,-150.0,0.00031081,2]
[421960927,1778374244000,-2728.41,0.00030972,2]
[421960916,1778374244000,-500.0,0.00030384,2]
[421960923,1778374244000,-671.0,0.00030896,30]
[421960919,1778374244000,-790.59,0.000306,14]
[421960922,1778374244000,-378.0,0.00030896,30]
[421960918,1778374244000,-500.0,0.00030539,20]
[421960920,1778374244000,-3077.40983933,0.00030635,2]
[421960929,1778374244000,-277.58,0.00031096,2]
[421960921,1778374244000,-503.0,0.00030884,8]
[421960906,1778374244000,-150.0,0.00029601,2]
[421960924,1778374244000,-161.0,0.00030896,30]
[421960925,1778374244000,-155.0,0.00030896,30]
[421960931,1778374244000,-1000.0,0.000315,7]
[421960941,1778374244000,-155.6,0.0003221,5]
[421960930,1778374244000,-1066.73007954,0.00031333,2]
[421960932,1778374244000,-163.0,0.00031644,14]
[421960936,1778374244000,-671.0,0.00031896,30]
[421960933,1778374244000,-503.0,0.00031811,9]
[421960940,1778374244000,-23872.0,0.000322,2]
[421960939,1778374244000,-235.56261772,0.00032028,3]
[421960935,1778374244000,-378.0,0.00031896,30]
[421960887,1778374244000,-4944.65,0.000274,2]
[421960934,1778374244000,-2728.41,0.00031832,2]
[421960942,1778374244000,-150.0,0.00032636,2]
[421960926,1778374244000,-1760.82720891,0.000309,64]
[421960907,1778374244000,-500.0,0.00029649,18]
[421960937,1778374244000,-161.0,0.00031896,30]
[421960910,1778374244000,-262.22,0.00030082,120]
[421960908,1778374244000,-503.0,0.00029958,7]
[421960879,1778374244000,-6484.41,0.00027397,10]
[421960881,1778374244000,-4503.06,0.00027397,10]
[421960882,1778374244000,-179.09,0.000274,7]
[421960883,1778374244000,-167.0,0.000274,7]
[421960884,1778374244000,-790.59,0.000274,14]
[421960888,1778374244000,-4944.65,0.000274,2]
[421960891,1778374244000,-401.34,0.000275,2]
[421960899,1778374244000,-155.6,0.00028267,2]
[421960893,1778374244000,-512.43,0.000276,7]
[421960892,1778374244000,-2728.41,0.00027531,2]
[421960896,1778374244000,-503.0,0.00028104,5]
[421960894,1778374244000,-500.0,0.000278,7]
[421960890,1778374244000,-4944.65,0.000274,2]
[421960880,1778374244000,-5403.67,0.00027397,10]
[421960897,1778374244000,-150.0,0.00028192,2]
[421960889,1778374244000,-4944.65,0.000274,2]
[421960902,1778374244000,-503.0,0.00029031,6]
[421960905,1778374244000,-720.0,0.00029445,2]
[421960904,1778374244000,-363.0,0.00029445,2]
[421960915,1778374244000,-167.0,0.000303,7]
[421960914,1778374244000,-179.09,0.000303,7]
[421960909,1778374244000,-163.0,0.0003,14]
[421960913,1778374244000,-155.6,0.00030239,2]
[421960903,1778374244000,-2728.41,0.00029251,2]
[421960901,1778374244000,-160.0,0.000289,30]
[421960900,1778374244000,-2728.41,0.00028391,2]
[421960898,1778374244000,-2415.25769731,0.00028229,2]
[421960895,1778374244000,-150.18,0.00028,2]
[421960993,1778374245000,-150.0,0.00033896,30]
[421960989,1778374245000,-350.0,0.00033848,2]
[421960991,1778374245000,-378.0,0.00033896,30]
[421960988,1778374245000,-350.0,0.00033848,2]
[421960996,1778374245000,-150.0,0.00033896,30]
[421960995,1778374245000,-150.0,0.00033896,30]
[421960975,1778374245000,-1100.0,0.00033696,2]
[421960987,1778374245000,-350.0,0.00033848,2]
[421960985,1778374245000,-350.0,0.00033848,2]
[421960992,1778374245000,-671.0,0.00033896,30]
[421960986,1778374245000,-350.0,0.00033848,2]
[421960984,1778374245000,-350.0,0.00033848,2]
[421961000,1778374245000,-250.0,0.00034182,7]
[421960994,1778374245000,-150.0,0.00033896,30]
[421960998,1778374245000,-290.0,0.00033896,30]
[421961008,1778374245000,-269.0,0.00034182,7]
[421961009,1778374245000,-155.6,0.00034182,7]
[421960997,1778374245000,-227.0,0.00033896,30]
[421960999,1778374245000,-3077.40983933,0.0003404,2]
[421961002,1778374245000,-250.0,0.00034182,7]
[421961003,1778374245000,-250.0,0.00034182,7]
[421961004,1778374245000,-250.0,0.00034182,7]
[421961005,1778374245000,-250.0,0.00034182,7]
[421961006,1778374245000,-250.0,0.00034182,7]
[421960973,1778374245000,-1100.0,0.00033696,2]
[421961007,1778374245000,-250.0,0.00034182,7]
[421960990,1778374245000,-161.0,0.00033848,2]
[421960971,1778374245000,-1100.0,0.00033696,2]
[421960956,1778374245000,-150.0,0.00032967,2]
[421960983,1778374245000,-350.0,0.00033848,2]
[421961012,1778374245000,-5530.0,0.000343,5]
[421960943,1778374245000,-437.4,0.00032668,2]
[421960953,1778374245000,-150.0,0.00032967,2]
[421960944,1778374245000,-2728.41,0.00032693,2]
[421960945,1778374245000,-179.09,0.000327,7]
[421960946,1778374245000,-167.0,0.000327,7]
[421960950,1778374245000,-671.0,0.00032896,30]
[421960947,1778374245000,-1020.26,0.000327,7]
[421960952,1778374245000,-150.0,0.00032967,2]
[421960948,1778374245000,-503.0,0.00032738,10]
[421960951,1778374245000,-161.0,0.00032896,30]
[421960949,1778374245000,-378.0,0.00032896,30]
[421960969,1778374245000,-1100.0,0.00033696,2]
[421960955,1778374245000,-150.0,0.00032967,2]
[421960958,1778374245000,-260.0,0.00032967,2]
[421960959,1778374245000,-5530.0,0.000332,3]
[421960960,1778374245000,-503.0,0.00033664,11]
[421960961,1778374245000,-1100.0,0.00033696,2]
[421960962,1778374245000,-1100.0,0.00033696,2]
[421960957,1778374245000,-150.0,0.00032967,2]
[421960967,1778374245000,-1100.0,0.00033696,2]
[421960977,1778374245000,-1100.0,0.00033696,2]
[421960980,1778374245000,-636.0,0.00033696,2]
[421960970,1778374245000,-1100.0,0.00033696,2]
[421960982,1778374245000,-350.0,0.00033848,2]
[421960981,1778374245000,-350.0,0.00033848,2]
[421960954,1778374245000,-150.0,0.00032967,2]
[421961010,1778374245000,-790.59,0.000342,14]
[421961001,1778374245000,-250.0,0.00034182,7]
[421961014,1778374245000,-238.0,0.00034482,2]
[421961042,1778374245000,-1020.26,0.000357,7]
[421961038,1778374245000,-500.0,0.00035616,7]
[421961046,1778374245000,-790.59,0.000359,14]
[421961045,1778374245000,-671.0,0.00035896,30]
[421961049,1778374245000,-152.0,0.00036039,3]
[421961059,1778374245000,-500.0,0.00036309,120]
[421961060,1778374245000,-500.0,0.00036309,120]
[421961061,1778374245000,-500.0,0.00036309,120]
[421961062,1778374245000,-500.0,0.00036309,120]